[Event "Rapid della Domenica"]
[Site "Chess.com"]
[Date "2020.05.24"]
[Round "6"]
[White "Carbon"]
[Black "malberici"]
[Result "1-0"]
[WhiteElo "1772"]
[BlackElo "1450"]
[TimeControl "720+3"]
[EndTime "8:31:55 PDT"]
[Termination "Carbon ha vinto per abbandono"]

1. e4 {[%clk 0:12:00.7]} 1... Nf6 {[%clk 0:12:01.3]} 2. Nc3 {[%clk 0:12:01.5]}
2... e5 {[%clk 0:12:02.4]} 3. Bc4 {[%clk 0:12:00.8]} 3... Bc5 {[%clk 0:12:04.4]}
4. d3 {[%clk 0:12:00.5]} 4... h6 {[%clk 0:12:04.3]} 5. Nf3 {[%clk 0:11:26.6]}
5... c6 {[%clk 0:12:01.9]} 6. d4 {[%clk 0:11:10.3]} 6... exd4 {[%clk 0:11:58.9]}
7. Nxd4 {[%clk 0:11:11.7]} 7... O-O {[%clk 0:11:55.9]} 8. O-O {[%clk 0:11:11.2]}
8... b5 {[%clk 0:11:29.6]} 9. Bb3 {[%clk 0:10:45.4]} 9... a5 {[%clk 0:11:28.9]}
10. e5 {[%clk 0:09:55]} 10... Nh7 {[%clk 0:11:07.4]} 11. a4 {[%clk 0:09:46.5]}
11... b4 {[%clk 0:10:53.3]} 12. Ne4 {[%clk 0:09:45.3]} 12... Bxd4 {[%clk
0:10:49.7]} 13. Qxd4 {[%clk 0:09:43.5]} 13... Ba6 {[%clk 0:10:13.3]} 14. Re1
{[%clk 0:09:34.7]} 14... Qe7 {[%clk 0:09:59]} 15. Bf4 {[%clk 0:09:23.8]} 15...
Bb7 {[%clk 0:09:21.7]} 16. Nd6 {[%clk 0:09:12.5]} 16... c5 {[%clk 0:08:57]} 17.
Qe3 {[%clk 0:08:33.8]} 17... Bc6 {[%clk 0:08:29.3]} 18. Qg3 {[%clk 0:08:20.1]}
18... Ng5 {[%clk 0:08:02.5]} 19. h4 {[%clk 0:08:04.5]} 19... Ne4 {[%clk
0:07:29.4]} 20. Nxe4 {[%clk 0:07:30.7]} 20... Bxe4 {[%clk 0:07:14.9]} 21. Rxe4
{[%clk 0:07:31.9]} 21... Kh8 {[%clk 0:07:07.7]} 22. Rd1 {[%clk 0:07:14.9]} 22...
Ra6 {[%clk 0:07:00.5]} 23. h5 {[%clk 0:06:57]} 23... f5 {[%clk 0:06:20.1]} 24.
Ree1 {[%clk 0:06:34.7]} 24... Nc6 {[%clk 0:06:14.2]} 25. Rd6 {[%clk 0:06:17.9]}
25... Nd4 {[%clk 0:06:00.8]} 26. Rxa6 {[%clk 0:06:13.1]} 26... Nxb3 {[%clk
0:05:50.3]} 27. cxb3 {[%clk 0:06:12.5]} 27... Rc8 {[%clk 0:05:31.3]} 28. Bxh6
{[%clk 0:05:55.6]} 28... Rc6 {[%clk 0:05:02.1]} 29. Rxc6 {[%clk 0:05:50.4]}
29... dxc6 {[%clk 0:04:59.3]} 30. Bg5 {[%clk 0:05:49.2]} 30... Qe6 {[%clk
0:04:55.1]} 31. h6 {[%clk 0:05:47.4]} 31... g6 {[%clk 0:04:46.5]} 32. Bf6+
{[%clk 0:05:40]} 32... Kh7 {[%clk 0:04:35.3]} 33. Rd1 {[%clk 0:05:35.4]} 1-0

[Event "Rapid della Domenica"]
[Site "Chess.com"]
[Date "2020.05.24"]
[Round "6"]
[White "pedrak"]
[Black "crippo"]
[Result "1-0"]
[WhiteElo "1678"]
[BlackElo "1558"]
[TimeControl "720+3"]
[EndTime "8:31:58 PDT"]
[Termination "pedrak ha vinto per abbandono"]

1. d4 {[%clk 0:12:02.9]} 1... d5 {[%clk 0:12:01.4]} 2. Nf3 {[%clk 0:12:04.1]}
2... Nf6 {[%clk 0:12:03.4]} 3. c3 {[%clk 0:12:04.6]} 3... e6 {[%clk 0:12:05.4]}
4. e3 {[%clk 0:12:05.7]} 4... Ne4 {[%clk 0:12:07.4]} 5. Nbd2 {[%clk 0:12:06.9]}
5... f5 {[%clk 0:12:09.5]} 6. Ne5 {[%clk 0:12:07.4]} 6... Nd7 {[%clk 0:12:09.9]}
7. Nxd7 {[%clk 0:12:05.3]} 7... Qxd7 {[%clk 0:12:11.3]} 8. Be2 {[%clk
0:12:06.8]} 8... c6 {[%clk 0:12:11.7]} 9. O-O {[%clk 0:12:08]} 9... Be7 {[%clk
0:12:13.6]} 10. f3 {[%clk 0:12:09.3]} 10... Nf6 {[%clk 0:12:14.2]} 11. Qc2
{[%clk 0:12:09.7]} 11... O-O {[%clk 0:12:15.1]} 12. b3 {[%clk 0:12:07.6]} 12...
Bd6 {[%clk 0:12:17]} 13. Bb2 {[%clk 0:12:05.3]} 13... Qf7 {[%clk 0:12:17.9]} 14.
e4 {[%clk 0:12:01.4]} 14... fxe4 {[%clk 0:12:18.9]} 15. fxe4 {[%clk 0:12:02.9]}
15... dxe4 {[%clk 0:12:20.5]} 16. Nxe4 {[%clk 0:12:04.4]} 16... Bc7 {[%clk
0:12:20.4]} 17. Nxf6+ {[%clk 0:12:03.8]} 17... gxf6 {[%clk 0:12:22.4]} 18. Rf3
{[%clk 0:11:44.3]} 18... Kh8 {[%clk 0:12:23.6]} 19. Raf1 {[%clk 0:11:44.2]}
19... Qg7 {[%clk 0:12:07.1]} 20. Bc1 {[%clk 0:11:15]} 20... Bd7 {[%clk
0:11:59.7]} 21. Bf4 {[%clk 0:11:15.2]} 21... Bxf4 {[%clk 0:11:56.4]} 22. Rxf4
{[%clk 0:11:16.4]} 22... f5 {[%clk 0:11:58.6]} 23. R1f3 {[%clk 0:10:49.4]} 23...
Rf6 {[%clk 0:11:59]} 24. Qd3 {[%clk 0:10:42.2]} 24... Rg8 {[%clk 0:11:54.6]} 25.
Rg3 {[%clk 0:10:23.4]} 25... Rg6 {[%clk 0:11:55.6]} 26. Rxg6 {[%clk 0:10:22]}
26... Qxg6 {[%clk 0:11:56]} 27. Bf3 {[%clk 0:09:54]} 27... Qh6 {[%clk 0:11:53]}
28. Qe3 {[%clk 0:09:43.6]} 28... Qg5 {[%clk 0:11:17.1]} 29. Qe5+ {[%clk
0:09:21.9]} 29... Qg7 {[%clk 0:11:18.2]} 30. Qxg7+ {[%clk 0:09:19.6]} 30... Rxg7
{[%clk 0:11:16.5]} 31. c4 {[%clk 0:09:18.8]} 31... Kg8 {[%clk 0:11:16]} 32. Kf2
{[%clk 0:09:18]} 32... Kf8 {[%clk 0:11:17.9]} 33. Rh4 {[%clk 0:09:13.1]} 33...
Ke7 {[%clk 0:11:19]} 34. g3 {[%clk 0:09:10.6]} 34... Be8 {[%clk 0:11:18.6]} 35.
Rh6 {[%clk 0:09:10.3]} 35... Bg6 {[%clk 0:11:20.4]} 36. Ke3 {[%clk 0:09:10.7]}
36... Kf6 {[%clk 0:11:21.7]} 37. Kf4 {[%clk 0:09:09.4]} 37... Rd7 {[%clk
0:11:05.5]} 38. Ke3 {[%clk 0:09:05.6]} 38... e5 {[%clk 0:11:03.5]} 39. d5 {[%clk
0:08:14.3]} 39... cxd5 {[%clk 0:11:03.6]} 40. Bxd5 {[%clk 0:08:15.6]} 40... b6
{[%clk 0:10:58.9]} 41. Rh4 {[%clk 0:08:08]} 41... Kg5 {[%clk 0:11:00.6]} 42. Rh3
{[%clk 0:07:48.5]} 42... h5 {[%clk 0:10:43.1]} 43. a3 {[%clk 0:07:39.1]} 43...
Re7 {[%clk 0:10:27.3]} 44. b4 {[%clk 0:07:31]} 44... f4+ {[%clk 0:10:24.1]} 45.
Kf2 {[%clk 0:07:30]} 45... Bf5 {[%clk 0:09:49.6]} 46. Rh4 {[%clk 0:07:30]} 46...
Be6 {[%clk 0:09:21.6]} 47. Bf3 {[%clk 0:07:28.5]} 47... Bf7 {[%clk 0:09:18]} 48.
Ke1 {[%clk 0:07:12.6]} 48... Bg6 {[%clk 0:09:18.3]} 49. Bd5 {[%clk 0:07:06.9]}
49... fxg3 {[%clk 0:09:07.9]} 50. hxg3 {[%clk 0:07:07]} 50... e4 {[%clk
0:09:06.9]} 51. Rf4 {[%clk 0:07:02.5]} 51... e3 {[%clk 0:09:07.1]} 52. Ke2
{[%clk 0:06:59.5]} 52... Bf5 {[%clk 0:09:03.1]} 53. a4 {[%clk 0:06:52.4]} 53...
Bg4+ {[%clk 0:09:00.4]} 54. Bf3 {[%clk 0:06:50.8]} 54... Bxf3+ {[%clk
0:08:47.8]} 55. Rxf3 {[%clk 0:06:49.9]} 55... Kg4 {[%clk 0:08:49.2]} 56. c5
{[%clk 0:06:45.6]} 56... bxc5 {[%clk 0:08:50.3]} 57. bxc5 {[%clk 0:06:47.3]}
57... Rc7 {[%clk 0:08:40.6]} 58. Rxe3 {[%clk 0:06:47.4]} 58... Rxc5 {[%clk
0:08:42.5]} 59. Kd2 {[%clk 0:06:31]} 59... Rc4 {[%clk 0:08:36]} 60. Ra3 {[%clk
0:06:29.6]} 60... Kh3 {[%clk 0:08:31.3]} 61. a5 {[%clk 0:06:28.9]} 61... Rg4
{[%clk 0:08:31.3]} 62. Rf3 {[%clk 0:06:17.6]} 62... Rxg3 {[%clk 0:08:31.1]} 63.
Rf7 {[%clk 0:06:19.4]} 63... a6 {[%clk 0:08:23.1]} 64. Rf6 {[%clk 0:06:20.6]}
64... Ra3 {[%clk 0:08:06.3]} 65. Rxa6 {[%clk 0:06:21.5]} 65... h4 {[%clk
0:08:07.9]} 66. Ke2 {[%clk 0:06:21]} 66... Kg2 {[%clk 0:08:09.8]} 67. Rg6+
{[%clk 0:06:21.4]} 67... Rg3 {[%clk 0:08:07.9]} 68. Rh6 {[%clk 0:06:17.8]} 68...
h3 {[%clk 0:08:08.2]} 69. a6 {[%clk 0:06:19.7]} 69... h2 {[%clk 0:08:08.6]} 70.
a7 {[%clk 0:06:21.2]} 70... Rg8 {[%clk 0:08:09.5]} 71. Rg6+ {[%clk 0:06:20]}
71... Rxg6 {[%clk 0:08:06.4]} 72. a8=Q+ {[%clk 0:06:21.5]} 72... Kh3 {[%clk
0:08:07.7]} 73. Qf3+ {[%clk 0:05:40.6]} 73... Rg3 {[%clk 0:08:05.3]} 74. Qf1+
{[%clk 0:05:34.8]} 74... Rg2+ {[%clk 0:08:07]} 75. Kf3 {[%clk 0:05:33.2]} 75...
h1=Q {[%clk 0:07:59]} 76. Qxh1+ {[%clk 0:05:34.2]} 76... Rh2 {[%clk 0:08:01.2]}
77. Qf1+ {[%clk 0:05:33.7]} 77... Kh4 {[%clk 0:08:03.2]} 78. Qc4+ {[%clk
0:05:31.5]} 78... Kh5 {[%clk 0:08:02]} 79. Qd5+ {[%clk 0:05:31.7]} 79... Kh6
{[%clk 0:08:03.7]} 80. Qd6+ {[%clk 0:05:31.9]} 80... Kg5 {[%clk 0:08:04.7]} 81.
Qxh2 {[%clk 0:05:33.1]} 1-0

[Event "Rapid della Domenica"]
[Site "Chess.com"]
[Date "2020.05.24"]
[Round "6"]
[White "laremaro"]
[Black "fausto2p"]
[Result "1-0"]
[WhiteElo "1574"]
[BlackElo "1193"]
[TimeControl "720+3"]
[EndTime "8:32:07 PDT"]
[Termination "laremaro ha vinto per abbandono"]

1. b3 {[%clk 0:12:01]} 1... d5 {[%clk 0:11:56.8]} 2. Bb2 {[%clk 0:12:01]} 2...
c5 {[%clk 0:11:14.6]} 3. e3 {[%clk 0:12:01.2]} 3... e6 {[%clk 0:11:15.8]} 4.
Bb5+ {[%clk 0:12:01.1]} 4... Bd7 {[%clk 0:11:12.9]} 5. Bxd7+ {[%clk 0:12:03]}
5... Qxd7 {[%clk 0:11:07.8]} 6. d3 {[%clk 0:12:05]} 6... Nf6 {[%clk 0:11:06.8]}
7. Nd2 {[%clk 0:12:06.3]} 7... Nc6 {[%clk 0:11:03.1]} 8. Ngf3 {[%clk 0:12:06.2]}
8... Be7 {[%clk 0:11:01.3]} 9. O-O {[%clk 0:12:02.1]} 9... O-O {[%clk
0:11:02.2]} 10. e4 {[%clk 0:11:46.9]} 10... d4 {[%clk 0:10:28.4]} 11. a4 {[%clk
0:11:42.5]} 11... e5 {[%clk 0:10:22.8]} 12. Nc4 {[%clk 0:11:37.1]} 12... Qc7
{[%clk 0:10:02.8]} 13. Bc1 {[%clk 0:10:56.9]} 13... h6 {[%clk 0:09:48.3]} 14. g3
{[%clk 0:10:55.9]} 14... Nd7 {[%clk 0:09:20.5]} 15. Nh4 {[%clk 0:10:07.5]} 15...
Bxh4 {[%clk 0:08:44.2]} 16. gxh4 {[%clk 0:10:06.5]} 16... Qd8 {[%clk 0:08:42]}
17. Qg4 {[%clk 0:10:07.4]} 17... Nf6 {[%clk 0:08:40.2]} 18. Qg3 {[%clk
0:10:08.3]} 18... Re8 {[%clk 0:08:24.8]} 19. Bxh6 {[%clk 0:10:04.2]} 19... Nh5
{[%clk 0:08:12.6]} 20. Qg4 {[%clk 0:10:04.2]} 20... g6 {[%clk 0:08:03.1]} 21.
Bg5 {[%clk 0:09:56.9]} 21... Qc8 {[%clk 0:07:57.1]} 22. Qxc8 {[%clk 0:09:06.9]}
22... Rexc8 {[%clk 0:07:54.1]} 23. Bd2 {[%clk 0:08:34.1]} 23... f6 {[%clk
0:07:34]} 24. f4 {[%clk 0:08:25.2]} 24... Kh7 {[%clk 0:06:48.8]} 25. fxe5 {[%clk
0:08:23.2]} 25... Nxe5 {[%clk 0:06:37]} 26. Nxe5 {[%clk 0:08:21.7]} 26... fxe5
{[%clk 0:06:34]} 27. Rf7+ {[%clk 0:08:16.5]} 27... Kg8 {[%clk 0:06:02.2]} 28.
Rxb7 {[%clk 0:07:07.2]} 28... Rf8 {[%clk 0:05:42]} 29. Rf1 {[%clk 0:07:07.2]}
29... Nf4 {[%clk 0:03:29.4]} 30. Bxf4 {[%clk 0:07:02.7]} 30... exf4 {[%clk
0:03:29]} 31. Kf2 {[%clk 0:06:52.8]} 31... Rf7 {[%clk 0:03:22]} 32. Rxf7 {[%clk
0:06:51]} 32... Kxf7 {[%clk 0:03:22.5]} 33. Kf3 {[%clk 0:06:53.6]} 33... Rf8
{[%clk 0:03:23.2]} 34. Rg1 {[%clk 0:06:51.5]} 34... Kg7 {[%clk 0:03:20.7]} 35.
Rg4 {[%clk 0:06:51.7]} 35... Kh6 {[%clk 0:03:22]} 36. Rxf4 {[%clk 0:06:52.8]}
36... Rxf4+ {[%clk 0:03:19.2]} 37. Kxf4 {[%clk 0:06:53.7]} 37... Kh5 {[%clk
0:03:20.8]} 38. e5 {[%clk 0:06:53.1]} 38... Kh6 {[%clk 0:03:14.7]} 39. e6 {[%clk
0:06:53.9]} 39... Kg7 {[%clk 0:03:16.1]} 40. Ke5 {[%clk 0:06:52.2]} 40... Kf8
{[%clk 0:03:15.8]} 41. Kf6 {[%clk 0:06:52.1]} 41... a6 {[%clk 0:03:08.5]} 42.
Kxg6 {[%clk 0:06:51.6]} 42... Ke7 {[%clk 0:03:09.8]} 43. Kf5 {[%clk 0:06:54.1]}
43... a5 {[%clk 0:03:07.3]} 44. h5 {[%clk 0:06:56]} 44... Ke8 {[%clk 0:03:08.2]}
45. Kf6 {[%clk 0:06:55]} 45... Kf8 {[%clk 0:03:08.5]} 46. h4 {[%clk 0:06:55]}
46... Ke8 {[%clk 0:03:08.5]} 47. e7 {[%clk 0:06:49]} 47... Kd7 {[%clk
0:03:07.6]} 48. Kf7 {[%clk 0:06:51.4]} 1-0

[Event "Rapid della Domenica"]
[Site "Chess.com"]
[Date "2020.05.24"]
[Round "6"]
[White "APipitone"]
[Black "SanSecondoPR"]
[Result "1-0"]
[WhiteElo "1526"]
[BlackElo "1312"]
[TimeControl "720+3"]
[EndTime "8:33:23 PDT"]
[Termination "APipitone ha vinto per abbandono"]

1. e4 {[%clk 0:11:58.1]} 1... e5 {[%clk 0:11:52.9]} 2. Nf3 {[%clk 0:11:57.5]}
2... Nc6 {[%clk 0:11:44.6]} 3. Bb5 {[%clk 0:11:55.9]} 3... Nge7 {[%clk
0:11:43.5]} 4. c3 {[%clk 0:11:50.7]} 4... g6 {[%clk 0:11:43.3]} 5. d4 {[%clk
0:11:49.8]} 5... Bg7 {[%clk 0:11:29.7]} 6. d5 {[%clk 0:11:36.6]} 6... Nb8 {[%clk
0:11:29.8]} 7. Bg5 {[%clk 0:11:31.8]} 7... f6 {[%clk 0:11:28.9]} 8. Be3 {[%clk
0:11:24.3]} 8... O-O {[%clk 0:11:28.9]} 9. O-O {[%clk 0:11:21.2]} 9... d6 {[%clk
0:11:29.8]} 10. Be2 {[%clk 0:11:16]} 10... c6 {[%clk 0:11:26.8]} 11. c4 {[%clk
0:11:14.9]} 11... Nd7 {[%clk 0:11:23.2]} 12. Nc3 {[%clk 0:11:13.4]} 12... Nc5
{[%clk 0:11:12.2]} 13. b4 {[%clk 0:11:10.9]} 13... Na6 {[%clk 0:11:10.4]} 14. c5
{[%clk 0:10:52]} 14... Nxb4 {[%clk 0:11:06]} 15. dxc6 {[%clk 0:10:41.2]} 15...
Nexc6 {[%clk 0:10:39.7]} 16. cxd6 {[%clk 0:10:41.2]} 16... Bd7 {[%clk
0:10:19.3]} 17. a3 {[%clk 0:10:36.9]} 17... Na6 {[%clk 0:10:12.7]} 18. Bc4+
{[%clk 0:10:20.2]} 18... Kh8 {[%clk 0:10:09.7]} 19. Nd5 {[%clk 0:10:02.3]} 19...
Na5 {[%clk 0:09:53.9]} 20. Ba2 {[%clk 0:09:43.6]} 20... b6 {[%clk 0:09:42.7]}
21. Nb4 {[%clk 0:09:33.6]} 21... Nc5 {[%clk 0:09:34.2]} 22. Bxc5 {[%clk
0:09:31.4]} 22... bxc5 {[%clk 0:09:32.2]} 23. Nd3 {[%clk 0:09:13.1]} 23... Bb5
{[%clk 0:09:20.6]} 24. Rc1 {[%clk 0:09:03.1]} 24... Qxd6 {[%clk 0:09:07.5]} 25.
Nxc5 {[%clk 0:08:59.8]} 25... Qxd1 {[%clk 0:08:36.8]} 26. Rfxd1 {[%clk
0:08:57.7]} 26... Be2 {[%clk 0:08:28.6]} 27. Rd7 {[%clk 0:08:47.2]} 27... Bh6
{[%clk 0:08:01.7]} 28. Rc3 {[%clk 0:07:37.5]} 28... Bb5 {[%clk 0:07:11.5]} 29.
Rc7 {[%clk 0:06:50.9]} 29... Rad8 {[%clk 0:06:41.6]} 30. h3 {[%clk 0:06:42.8]}
30... Rd1+ {[%clk 0:06:28]} 31. Kh2 {[%clk 0:06:40.1]} 31... Bf4+ {[%clk
0:06:15.5]} 32. g3 {[%clk 0:06:38.1]} 32... Bh6 {[%clk 0:06:11.7]} 33. Ne6
{[%clk 0:06:25.4]} 33... Re8 {[%clk 0:05:39.4]} 34. Rc8 {[%clk 0:06:17.3]} 34...
Bd7 {[%clk 0:05:06.2]} 35. Rxe8+ {[%clk 0:06:15.9]} 35... Bxe8 {[%clk
0:05:04.2]} 36. Rc8 {[%clk 0:06:15.5]} 36... Kg8 {[%clk 0:04:37.6]} 37. Rxe8+
{[%clk 0:06:12.1]} 37... Kf7 {[%clk 0:04:37.9]} 38. Nc7+ {[%clk 0:06:03]} 38...
Kg7 {[%clk 0:04:34.6]} 39. Re7+ {[%clk 0:05:50.2]} 39... Kf8 {[%clk 0:04:26.1]}
40. Rxh7 {[%clk 0:05:47.4]} 40... Bc1 {[%clk 0:04:15.3]} 41. Ne6+ {[%clk
0:05:27.8]} 41... Kg8 {[%clk 0:04:10.6]} 42. Rxa7 {[%clk 0:05:24.7]} 42... Nc6
{[%clk 0:03:58]} 43. Nd8+ {[%clk 0:05:04.4]} 43... Kf8 {[%clk 0:03:48.3]} 44.
Nxc6 {[%clk 0:05:03.6]} 44... Bxa3 {[%clk 0:03:47.8]} 45. Rxa3 {[%clk
0:04:40.6]} 1-0

[Event "Rapid della Domenica"]
[Site "Chess.com"]
[Date "2020.05.24"]
[Round "6"]
[White "Mrtre7"]
[Black "toninoiuorio"]
[Result "1/2-1/2"]
[WhiteElo "1439"]
[BlackElo "1544"]
[TimeControl "720+3"]
[EndTime "8:38:38 PDT"]
[Termination "Patta per materiale insufficiente"]

1. d4 {[%clk 0:11:59]} 1... d5 {[%clk 0:11:57.1]} 2. c4 {[%clk 0:11:57.3]} 2...
e6 {[%clk 0:11:34.6]} 3. Nc3 {[%clk 0:11:55.1]} 3... Nf6 {[%clk 0:11:36.3]} 4.
cxd5 {[%clk 0:11:55.9]} 4... exd5 {[%clk 0:11:37.2]} 5. Bg5 {[%clk 0:11:57.2]}
5... Bb4 {[%clk 0:11:14.9]} 6. e3 {[%clk 0:10:57]} 6... Nc6 {[%clk 0:11:08.8]}
7. Bd3 {[%clk 0:10:41.1]} 7... Be6 {[%clk 0:11:04.3]} 8. Ne2 {[%clk 0:10:29.2]}
8... Bxc3+ {[%clk 0:10:59.5]} 9. bxc3 {[%clk 0:10:24.5]} 9... h6 {[%clk
0:10:52.5]} 10. Bh4 {[%clk 0:10:25]} 10... O-O {[%clk 0:10:45.1]} 11. O-O {[%clk
0:10:26.4]} 11... Rb8 {[%clk 0:10:31.8]} 12. e4 {[%clk 0:10:11.5]} 12... g5
{[%clk 0:10:24.1]} 13. exd5 {[%clk 0:09:48.4]} 13... Nxd5 {[%clk 0:10:17.2]} 14.
Bg3 {[%clk 0:09:15.9]} 14... Nde7 {[%clk 0:09:59.8]} 15. f4 {[%clk 0:08:18.4]}
15... Nd5 {[%clk 0:09:46.1]} 16. fxg5 {[%clk 0:06:25.6]} 16... hxg5 {[%clk
0:09:32.6]} 17. c4 {[%clk 0:06:14.6]} 17... Nc3 {[%clk 0:09:13.4]} 18. Qd2
{[%clk 0:05:15.3]} 18... Nxe2+ {[%clk 0:09:02.5]} 19. Bxe2 {[%clk 0:04:52.3]}
19... Qxd4+ {[%clk 0:08:47.1]} 20. Qxd4 {[%clk 0:04:33.3]} 20... Nxd4 {[%clk
0:08:48.9]} 21. Bd3 {[%clk 0:04:14.5]} 21... g4 {[%clk 0:08:36.1]} 22. Bxc7
{[%clk 0:04:03.2]} 22... Rbc8 {[%clk 0:08:30.7]} 23. Bd6 {[%clk 0:03:50.4]}
23... Rfd8 {[%clk 0:08:23.5]} 24. c5 {[%clk 0:03:52]} 24... b6 {[%clk 0:08:16]}
25. Ba6 {[%clk 0:03:44.4]} 25... Rxc5 {[%clk 0:07:59.1]} 26. Bxc5 {[%clk
0:03:41.2]} 26... bxc5 {[%clk 0:07:55.8]} 27. Rac1 {[%clk 0:03:09.1]} 27... Rd5
{[%clk 0:07:49.6]} 28. Bc4 {[%clk 0:02:41.1]} 28... Re5 {[%clk 0:07:44.5]} 29.
Bd3 {[%clk 0:02:06.5]} 29... Bxa2 {[%clk 0:07:35.1]} 30. Rf4 {[%clk 0:01:57.6]}
30... Re3 {[%clk 0:07:18.9]} 31. Rxg4+ {[%clk 0:01:46.3]} 31... Kf8 {[%clk
0:07:13.4]} 32. Ba6 {[%clk 0:01:22.3]} 32... Be6 {[%clk 0:07:05.2]} 33. Rg3
{[%clk 0:01:16.7]} 33... Rxg3 {[%clk 0:06:54.8]} 34. hxg3 {[%clk 0:01:18.5]}
34... Nb3 {[%clk 0:06:55.7]} 35. Rc3 {[%clk 0:01:15.9]} 35... Ke8 {[%clk
0:06:50.2]} 36. Bc4 {[%clk 0:01:09]} 36... Bxc4 {[%clk 0:06:41.8]} 37. Rxc4
{[%clk 0:01:11]} 37... a5 {[%clk 0:06:42.8]} 38. Kf2 {[%clk 0:00:58]} 38... Kd7
{[%clk 0:06:38]} 39. Ke3 {[%clk 0:00:59.9]} 39... Ke6 {[%clk 0:06:34.7]} 40. Kd3
{[%clk 0:00:57.6]} 40... Kd5 {[%clk 0:06:29.5]} 41. Rc3 {[%clk 0:00:55]} 41...
a4 {[%clk 0:06:16.3]} 42. Kc2 {[%clk 0:00:49.1]} 42... c4 {[%clk 0:06:10.4]} 43.
Rf3 {[%clk 0:00:49]} 43... Nd4+ {[%clk 0:06:03.4]} 44. Kb2 {[%clk 0:00:33.5]}
44... Nxf3 {[%clk 0:05:43.3]} 45. gxf3 {[%clk 0:00:34.4]} 45... f5 {[%clk
0:05:45]} 46. g4 {[%clk 0:00:23.3]} 46... fxg4 {[%clk 0:05:30.6]} 47. fxg4
{[%clk 0:00:24]} 47... Kd4 {[%clk 0:05:28]} 48. g5 {[%clk 0:00:25.1]} 48... Ke5
{[%clk 0:05:23.4]} 49. Ka3 {[%clk 0:00:04]} 49... c3 {[%clk 0:05:18.4]} 50. Ka2
{[%clk 0:00:03.7]} 50... c2 {[%clk 0:05:06.3]} 51. Kb2 {[%clk 0:00:05.6]} 51...
Kd5 {[%clk 0:04:36.2]} 52. g6 {[%clk 0:00:07.5]} 52... c1=Q+ {[%clk 0:04:03.8]}
53. Kxc1 {[%clk 0:00:09.3]} 53... Ke6 {[%clk 0:03:55.1]} 54. Kb2 {[%clk
0:00:11]} 54... Kf6 {[%clk 0:03:56.2]} 55. Ka3 {[%clk 0:00:13]} 55... Kxg6
{[%clk 0:03:58.3]} 56. Kxa4 {[%clk 0:00:15.1]} 1/2-1/2